bitfinex-derivatives/quotes_ETHF0:USTF0_20250917
["timestamp","ask_amount","ask_price","bid_price","bid_amount"]
[1758151072882,0.51106375,4601.2,4601.1,4.5371]
[1758151073182,3.2078,4601.9,4601.6,0.39099]
[1758151073381,0.95863792,4601.8,4601.7,0.5371]
[1758151074382,0.229,4601.8,4601.7,0.5371]
[1758151074984,3.2078,4602.5,4601.7,0.5371]
[1758151075186,0.73920443,4602.4,4601.7,0.5371]
[1758151075488,3.2078,4602.0,4601.6,0.5371]
[1758151075682,0.229,4601.9,4601.6,0.5371]
[1758151075881,3.2078,4602.0,4601.8,0.7487]
[1758151076087,3.2078,4602.5,4602.1,0.5371]
[1758151076385,0.3942,4602.2,4602.1,0.9157]
[1758151077985,0.6232,4602.2,4602.1,0.9157]
[1758151078789,0.9841,4602.2,4602.1,0.9157]
[1758151078988,1.4934053,4602.2,4602.1,0.9157]
[1758151079380,1.2644053,4602.2,4602.1,0.9157]
[1758151079580,1.4934053,4602.2,4602.1,0.9157]
[1758151080394,0.9841,4602.2,4602.1,1.2818]
[1758151081281,0.7551,4602.2,4602.1,1.2818]
[1758151081486,0.9841,4602.2,4602.1,1.2818]
[1758151083387,1.49394305,4602.2,4602.1,1.2818]
[1758151084190,0.9841,4602.2,4602.1,1.2818]
[1758151084493,1.26496212,4602.2,4602.1,1.2818]
[1758151084691,1.49396212,4602.2,4602.1,1.2818]
[1758151088989,1.26496212,4602.2,4602.1,1.2818]
[1758151089294,1.49396212,4602.2,4602.1,1.2818]
[1758151089803,1.26496212,4602.2,4602.1,1.2818]
[1758151090096,1.13306212,4602.2,4602.1,1.2818]
[1758151090897,1.74393042,4602.2,4602.1,1.2818]
[1758151092397,1.74393042,4602.2,4601.6,0.1738]
[1758151092398,6.39412042,4602.2,4601.6,0.7642]
[1758151092597,3.9986,4601.7,4601.0,0.2215]
[1758151092900,0.72653042,4601.6,4601.5,0.2264]
[1758151093100,0.72653042,4601.6,4601.5,1.5761]
[1758151093696,0.95553042,4601.6,4601.5,1.5761]
[1758151094003,0.72653042,4601.6,4601.5,1.5761]
[1758151095204,1.12313042,4601.6,4601.5,1.5761]
[1758151096104,0.72653042,4601.6,4601.5,1.5761]
[1758151097502,1.12313042,4601.6,4601.5,1.5761]
[1758151097702,1.51733042,4601.6,4601.5,1.5761]
[1758151097905,0.4329,4601.5,4601.0,0.5928]
[1758151098100,1.2237,4601.1,4601.0,1.1832]
[1758151098299,0.7908,4600.8,4600.7,0.7642]
[1758151098499,1.95023042,4600.8,4600.7,0.1738]
[1758151098895,1.95023042,4600.8,4600.5,0.2215]
[1758151099100,1.2237,4600.6,4600.5,0.8119]
[1758151099304,1.95023042,4600.6,4600.5,0.8119]
[1758151099810,1.95023042,4600.6,4600.5,1.1832]
[1758151100498,1.51733042,4600.6,4600.5,1.5712]
[1758151100700,0.72653042,4600.6,4600.5,1.5712]
[1758151100899,0.72653042,4600.6,4600.5,5.78857]
[1758151101100,3.2078,4601.7,4600.6,0.39108]
[1758151101306,3.2078,4601.7,4601.6,1.3497]
[1758151101495,3.4368,4601.7,4601.6,1.3497]
[1758151101698,3.2078,4601.7,4601.6,1.3497]
[1758151102304,3.6044,4601.7,4601.6,1.3497]
[1758151102605,3.4368,4601.7,4601.6,1.3497]
[1758151102998,3.8334,4601.7,4601.6,1.3497]
[1758151103199,4.391,4601.7,4601.6,1.3497]
[1758151103399,4.162,4601.7,4601.6,1.3497]
[1758151103712,3.8334,4601.7,4601.6,1.3497]
[1758151106101,4.391,4601.7,4601.6,1.3497]
[1758151107007,3.8334,4601.7,4601.6,1.3497]
[1758151107711,0.6256,4601.7,4601.6,1.3497]
[1758151108413,0.7908,4602.5,4602.4,1.3497]
[1758151109014,0.8128,4603.2,4603.1,0.3713]
[1758151109209,0.8128,4603.2,4603.1,1.3497]
[1758151109210,1.5994,4603.2,4603.1,1.3497]
[1758151110411,1.3704,4603.2,4603.1,1.3497]
[1758151110608,0.022,4603.2,4603.1,1.3497]
[1758151112108,0.4186,4603.2,4603.1,1.3497]
[1758151112312,1.3704,4603.2,4603.1,1.3497]
[1758151113112,1.31599598,4603.2,4603.1,1.3497]
[1758151113313,0.52519598,4603.2,4603.1,1.3497]
[1758151114412,0.022,4603.2,4603.1,1.3497]
[1758151116014,0.022,4603.2,4603.1,5.3497]
[1758151116209,0.5862,4604.1,4604.0,0.949]
[1758151116410,1.07522427,4604.1,4604.0,1.5092]
[1758151116814,0.86071816,4604.1,4604.0,1.5092]
[1758151117409,0.3582,4604.1,4604.0,1.5092]
[1758151117805,0.9405,4604.7,4604.6,0.7326]
[1758151118014,2.0216134,4604.7,4604.6,1.2928]
[1758151118215,1.80725159,4604.7,4604.6,1.2928]
[1758151118511,0.50095159,4604.7,4604.6,1.2928]
[1758151118716,0.85915159,4604.7,4604.6,1.2928]
[1758151118917,1.80725159,4604.7,4604.6,1.2928]
[1758151119417,1.3063,4604.7,4604.6,1.2928]
[1758151120118,1.3063,4604.7,4604.6,0.367]
[1758151120414,1.3063,4604.1,4604.0,1.5092]
[1758151120614,1.3063,4604.1,4604.0,0.367]
[1758151121413,1.3063,4603.7,4603.6,0.367]
[1758151121619,0.724,4603.4,4603.3,0.9272]
[1758151121915,1.3063,4603.4,4603.3,0.9272]
[1758151122619,1.3063,4603.4,4603.3,0.367]
[1758151123412,0.223,4603.5,4603.2,0.367]
[1758151123614,0.223,4603.5,4602.9,3.2078]
[1758151123615,0.724,4603.3,4602.9,3.768]
[1758151123913,1.5293,4603.0,4602.9,3.2078]
[1758151124113,1.5293,4603.0,4602.9,3.5748]
[1758151124511,1.5293,4603.0,4602.9,3.2078]
[1758151124714,1.3063,4602.5,4602.4,1.2928]
[1758151124918,1.5293,4602.5,4602.4,1.2928]
[1758151125119,1.3063,4602.4,4602.3,0.1738]
[1758151125420,4.5141,4602.4,4602.3,0.1738]
[1758151126528,3.2078,4602.9,4602.8,0.5602]
[1758151126718,0.9405,4603.3,4603.2,0.7326]
[1758151126922,0.8103,4603.8,4603.3,0.5602]
[1758151127122,1.44087047,4603.7,4603.6,1.2928]
[1758151127321,0.3582,4603.7,4603.6,1.2928]
[1758151128019,1.3063,4603.7,4603.6,1.2928]
[1758151129621,0.5823,4603.6,4603.5,0.367]
[1758151129819,1.3063,4603.6,4603.5,0.9272]
[1758151130444,3.4358,4603.9,4603.5,0.9272]
[1758151130445,3.2078,4603.9,4603.5,0.949]
[1758151130742,1.3063,4604.4,4604.3,1.2928]
[1758151131036,0.3582,4604.4,4604.3,1.2928]
[1758151131430,0.5823,4604.8,4604.3,0.7326]
[1758151131733,0.5862,4604.7,4604.6,1.2928]
[1758151132631,1.1685,4604.7,4604.6,1.2928]
[1758151133125,0.9405,4604.7,4604.6,1.2928]
[1758151133733,1.3063,4604.7,4604.6,1.2928]
[1758151135342,0.3582,4604.7,4604.6,1.2928]
[1758151137136,1.3063,4604.7,4604.6,1.2928]
[1758151138435,1.80832463,4604.7,4604.6,1.2928]
[1758151139840,1.80832463,4604.7,4604.2,3.2078]
[1758151140044,0.7407,4604.0,4603.9,1.2869]
[1758151140248,0.9248,4604.5,4604.4,1.2869]
[1758151140447,0.9687,4604.9,4604.8,0.7407]
[1758151140743,0.7407,4604.4,4604.3,0.9119]
[1758151141046,1.3123,4604.2,4604.1,0.9119]
[1758151141240,1.3123,4604.2,4603.5,3.9704]
[1758151141540,1.3123,4603.9,4603.5,3.2078]
[1758151141738,5.02221264,4603.9,4603.1,0.7742]
[1758151141940,4.45061264,4603.9,4603.1,0.7742]
[1758151142141,0.7407,4603.2,4603.0,3.2078]
[1758151142441,1.3123,4602.7,4602.6,0.9119]
[1758151142843,1.81462952,4602.7,4602.6,0.9119]
[1758151143936,0.3532,4601.1,4601.0,4.3347]
[1758151144238,0.8026,4602.0,4601.6,0.5462]
[1758151144239,0.5716,4602.0,4601.6,0.5462]
[1758151144437,0.3532,4602.0,4601.9,1.2869]
[1758151144644,0.3532,4601.4,4601.3,1.2869]
[1758151144950,0.9248,4601.4,4601.3,1.2869]
[1758151145651,1.297,4601.4,4601.3,1.2869]
[1758151145943,0.3632,4600.9,4600.8,1.3243]
[1758151146447,1.2813,4600.9,4600.8,1.3243]
[1758151146646,1.2813,4600.6,4600.5,0.0217]
[1758151146942,3.9817,4600.6,4600.5,0.0217]
[1758151148051,0.2139,4600.0,4599.9,0.1739]
[1758151148244,0.7598,4600.0,4599.9,0.1739]
[1758151148841,3.9676,4600.0,4599.9,0.1739]
[1758151149043,7.63909001,4600.0,4598.8,3.2078]
[1758151149349,3.7537,4599.5,4598.9,0.5662]
[1758151149541,0.7739,4599.4,4598.8,3.774]
[1758151151745,0.7739,4599.4,4598.8,3.2078]
[1758151151945,0.7739,4599.4,4599.1,0.5662]
[1758151152145,0.5459,4599.3,4599.1,0.5662]
[1758151152345,0.228,4599.4,4599.1,0.5662]
[1758151152543,0.5459,4599.7,4599.1,0.5662]
[1758151152746,0.228,4599.6,4599.1,0.5662]
[1758151152945,0.228,4599.6,4599.0,0.23]
[1758151153250,0.228,4599.6,4599.1,0.5662]
[1758151153453,0.3632,4599.2,4599.1,1.3243]
[1758151153748,0.228,4599.3,4599.2,0.5662]
[1758151153947,0.5912,4599.3,4599.2,1.3243]
[1758151155752,0.3632,4599.3,4599.2,1.3243]
[1758151156147,1.5093,4599.3,4599.2,1.3243]
[1758151157349,0.7354,4598.9,4598.8,0.5662]
[1758151157553,1.2813,4598.7,4598.5,0.1058]
[1758151157753,1.2813,4598.6,4598.5,0.1058]
[1758151157958,3.2078,4599.0,4598.5,1.6384]
[1758151158146,0.228,4598.6,4598.5,1.5543]
[1758151158453,0.5912,4598.6,4598.5,1.5543]
[1758151159651,1.2813,4598.3,4598.2,0.02174788]
[1758151160555,1.2813,4598.3,4597.5,3.2078]
[1758151160556,5.49877,4598.3,4597.5,3.2078]
[1758151160855,3.4217,4598.5,4597.1,0.5662]
[1758151160856,1.2813,4597.6,4597.1,0.5662]
[1758151161052,1.5093,4597.6,4597.4,0.6515]
[1758151161357,1.4213,4597.5,4597.4,0.0853]
[1758151163550,1.4213,4597.5,4596.8,3.774]
[1758151164157,0.7354,4597.5,4597.4,1.3243]
[1758151164353,0.9634,4597.5,4597.4,1.3243]
[1758151164550,40.8,4598.0,4597.4,0.7581]
[1758151164756,0.5912,4597.9,4597.8,0.9475]
[1758151165245,0.3632,4597.9,4597.8,0.9475]
[1758151165450,0.5912,4597.9,4597.8,0.9475]
[1758151166051,0.7354,4597.9,4597.8,1.3243]
[1758151166248,40.8,4598.2,4598.0,0.23]
[1758151166454,3.571,4598.5,4598.4,1.3243]
[1758151166750,0.5912,4598.5,4598.4,1.3243]
[1758151166947,3.7537,4599.1,4598.5,0.7962]
[1758151167158,0.7354,4599.0,4598.9,1.3243]
[1758151167359,0.9634,4599.0,4598.9,1.3243]
[1758151167550,0.7354,4599.0,4598.9,1.3243]
[1758151167749,0.7354,4599.0,4598.7,3.2078]
[1758151167750,0.7354,4599.2,4599.1,0.9475]
[1758151167956,0.9634,4599.2,4599.1,0.9475]
[1758151168261,0.5912,4599.2,4599.1,1.3243]
[1758151169156,0.3632,4599.2,4599.1,1.3243]
[1758151169357,0.5912,4599.2,4599.1,1.3243]
[1758151169553,0.5912,4599.2,4598.7,3.2078]
[1758151169554,0.2139,4599.0,4598.7,3.2078]
[1758151169860,0.2139,4599.0,4597.1,0.0833]
[1758151169861,0.5459,4597.4,4597.1,0.0833]
[1758151170048,0.5459,4597.4,4596.6,3.2078]
[1758151170049,0.2139,4597.0,4596.6,3.2078]
[1758151170253,3.7537,4596.8,4596.0,3.2078]
[1758151170449,0.5459,4596.8,4596.0,3.59927]
[1758151170666,0.5459,4596.8,4596.0,3.2078]
[1758151170848,0.5459,4596.9,4596.0,3.2078]
[1758151171053,3.2078,4596.7,4596.0,3.2078]
[1758151171353,0.5459,4596.4,4596.0,3.2078]
[1758151171656,0.2139,4596.5,4596.2,0.39145]
[1758151171853,0.5459,4596.4,4596.3,0.39145]
[1758151172556,0.7598,4597.5,4596.4,1.29711]
[1758151172860,3.2078,4597.9,4597.3,0.39136]
[1758151172861,0.5459,4597.8,4597.3,0.39136]
[1758151173161,0.50440273,4597.7,4597.3,0.39136]
[1758151173359,0.5459,4597.8,4597.1,3.5263]
[1758151173562,3.2078,4597.9,4597.8,0.39132]
[1758151173960,3.2078,4597.9,4597.8,0.3185]
[1758151174168,0.5459,4597.8,4596.7,0.3185]
[1758151174358,0.50525157,4597.7,4596.9,0.228]
[1758151174663,0.5459,4597.8,4597.2,0.39137]
[1758151174858,1.05115061,4597.7,4597.5,0.39134]
[1758151175050,3.2078,4597.9,4597.8,0.39132]
[1758151175257,0.5052358,4597.9,4597.7,3.59913]
[1758151175561,0.5687,4597.9,4597.7,3.2078]
[1758151175764,0.50559827,4597.8,4597.3,0.228]
[1758151175965,0.5687,4597.4,4597.3,0.228]
[1758151176154,0.5687,4597.4,4597.1,3.2078]
[1758151176358,0.2231,4597.5,4597.1,3.2078]
[1758151176561,0.5687,4597.3,4597.1,3.2078]
[1758151176761,0.5687,4597.3,4596.9,0.0217]
[1758151176762,0.7918,4597.0,4596.9,0.0217]
[1758151176962,1.29790365,4597.0,4596.9,0.0217]
[1758151177165,1.29790365,4597.0,4596.8,0.174]
[1758151177166,1.51325536,4597.0,4596.8,0.174]
[1758151177359,1.29015536,4596.9,4596.8,0.174]
[1758151177664,0.72145536,4596.9,4596.3,3.2078]
[1758151177857,0.5687,4596.4,4596.3,3.2078]
[1758151181066,0.5687,4596.4,4596.3,3.4358]
[1758151182066,0.5687,4596.4,4596.3,3.2078]
[1758151182262,0.5687,4596.4,4596.3,3.4358]
[1758151182960,0.17143147,4598.4,4596.3,3.4358]
[1758151182961,3.4217,4598.0,4597.7,0.3393]
[1758151183165,0.72090703,4597.9,4597.8,0.5673]
[1758151183560,0.5687,4598.6,4598.5,0.39126]
[1758151183756,1.28765552,4598.6,4598.3,0.3393]
[1758151183965,0.5687,4598.4,4598.3,0.228]
[1758151184166,1.07313898,4598.4,4598.3,0.228]
[1758151185068,0.50443898,4598.4,4598.3,0.5673]
[1758151185268,0.5687,4598.4,4598.3,0.228]
[1758151185576,0.2231,4599.0,4598.3,0.5673]
[1758151185869,0.71627969,4598.9,4598.6,0.39125]
[1758151186071,1.28497969,4598.8,4598.6,0.39125]
[1758151186264,0.50452595,4598.7,4598.3,0.73058]
[1758151186471,0.5687,4598.4,4598.1,0.39129]
[1758151186669,0.2231,4598.5,4598.2,0.61929]
[1758151186870,1.07328156,4598.4,4598.2,0.61929]
[1758151187066,0.5687,4598.4,4598.2,0.228]
[1758151187662,0.5687,4598.4,4597.8,3.2078]
[1758151187864,0.2231,4598.0,4597.3,3.2078]
[1758151188069,0.7918,4597.5,4597.4,0.228]
[1758151188263,0.2231,4598.0,4597.6,0.39133]
[1758151188570,0.50482081,4597.9,4597.5,0.3393]
[1758151188771,0.2231,4598.0,4597.7,0.39133]
[1758151188970,0.50478582,4597.9,4597.7,0.39133]
[1758151189268,0.5687,4597.9,4597.3,3.2078]
[1758151189570,0.2231,4597.5,4597.0,0.39138]
[1758151189772,0.7918,4598.0,4597.4,0.39135]
[1758151190074,0.5687,4597.8,4597.5,0.228]
[1758151190260,0.50486553,4597.9,4597.5,0.228]
[1758151190261,0.5687,4597.9,4597.5,0.228]
[1758151190467,0.2231,4598.0,4597.5,0.5673]
[1758151190671,0.5687,4597.8,4597.5,0.3393]
[1758151190969,0.5687,4597.9,4597.6,0.228]
[1758151191172,0.5687,4597.9,4597.5,0.3393]
[1758151191173,0.2231,4598.0,4597.5,0.73064]
[1758151191472,0.5687,4597.8,4597.6,0.61934]
[1758151191673,0.5687,4597.8,4597.6,0.95864]
[1758151192361,3.2078,4598.3,4597.7,0.3393]
[1758151192568,0.50483866,4598.2,4597.9,0.3393]
[1758151192868,0.5687,4598.2,4598.0,0.6193]
[1758151193063,0.5687,4598.2,4598.1,0.228]
[1758151193770,0.5687,4598.2,4598.0,0.3913]
[1758151193978,0.5687,4598.2,4598.1,0.228]
[1758151194175,3.2078,4598.3,4598.1,0.95859]
[1758151194369,3.7765,4598.3,4598.1,0.95859]
[1758151194674,0.7918,4598.5,4598.4,0.39127]
[1758151194973,0.5687,4598.4,4598.1,0.5673]
[1758151195173,0.2231,4598.5,4598.1,0.5673]
[1758151195371,0.5687,4598.4,4598.1,0.228]
[1758151195874,0.2231,4598.5,4598.1,0.228]
[1758151196064,0.5687,4598.4,4598.1,0.61929]
[1758151196266,0.2231,4598.5,4598.1,0.61929]
[1758151196475,0.5687,4598.4,4598.1,0.61929]
[1758151196671,0.2231,4598.5,4598.1,0.61929]
[1758151197065,0.2231,4598.5,4598.1,0.228]
[1758151197274,0.5687,4598.4,4598.1,0.228]
[1758151197575,0.2231,4598.5,4598.2,0.39128]
[1758151197776,0.5858,4598.4,4598.1,0.228]
[1758151198270,0.5858,4598.4,4598.1,0.61929]
[1758151198476,0.9757,4598.2,4598.1,0.5857]
[1758151198871,1.3306,4598.2,4598.1,0.5857]
[1758151200171,0.9757,4598.2,4598.1,0.9707]
[1758151200377,0.5858,4598.2,4598.1,1.362]
[1758151201175,0.5858,4598.7,4598.4,1.45886]
[1758151201371,0.228,4599.4,4599.1,0.39121]
[1758151201372,3.2078,4599.4,4599.1,0.39121]
[1758151201571,3.9526,4599.4,4599.3,0.7427]
[1758151201773,3.9526,4599.4,4599.2,0.228]
[1758151201967,0.5858,4599.3,4599.2,0.228]
[1758151202174,1.3306,4599.3,4599.2,0.228]
[1758151202773,0.2164,4599.0,4598.9,0.7427]
[1758151202975,0.9757,4599.3,4599.2,0.7427]
[1758151203275,0.5858,4599.3,4599.2,1.0676]
[1758151203482,3.2078,4599.4,4599.3,1.45879]
[1758151203678,4.1835,4599.4,4599.3,0.9707]
[1758151203873,0.9757,4599.4,4599.3,0.9707]
[1758151204769,0.9757,4599.4,4598.6,3.2078]
[1758151204770,0.7448,4599.4,4598.6,3.2078]
[1758151204975,0.6063,4598.5,4598.4,0.74897]
[1758151205168,1.1921,4598.5,4598.4,1.36197]
[1758151205381,0.2164,4599.0,4598.9,0.7427]
[1758151205581,0.5559,4599.3,4599.2,0.7319]
[1758151205770,0.9264,4599.3,4599.2,0.7319]
[1758151206478,0.5559,4599.3,4599.2,0.7319]
[1758151207076,0.9264,4599.3,4599.2,0.7319]
[1758151208178,0.2231,4600.0,4599.7,1.0515]
[1758151208484,0.779,4600.0,4599.9,0.7319]
[1758151208970,0.5559,4600.0,4599.9,0.7319]
[1758151209176,0.5559,4600.0,4599.9,1.0515]
[1758151209377,0.5559,4600.0,4599.9,0.7319]
[1758151209682,1.1487,4600.0,4599.9,0.9599]
[1758151209878,1.5375,4600.0,4599.9,0.9599]
[1758151211980,1.1487,4600.0,4599.9,0.9599]
[1758151212378,3.5783,4600.4,4600.3,0.7319]
[1758151212572,0.3705,4600.4,4600.3,0.9599]
[1758151212777,0.7593,4600.4,4600.3,0.9599]
[1758151213078,1.5375,4600.0,4599.9,0.3666]
[1758151213280,1.5375,4600.0,4599.9,0.5946]
[1758151214078,0.5559,4600.3,4599.9,0.9599]
[1758151214275,0.5559,4600.3,4600.2,0.7319]
[1758151214483,0.9264,4600.3,4600.2,0.7319]
[1758151216782,1.3152,4600.3,4600.2,0.3666]
[1758151216976,0.2223,4600.0,4599.7,3.2078]
[1758151217178,1.3152,4599.9,4599.8,0.228]
[1758151217372,0.5559,4599.8,4599.7,3.2078]
[1758151217673,0.9264,4599.8,4599.7,4.1677]
[1758151219281,0.5559,4599.8,4599.7,4.1677]
[1758151219487,0.5559,4599.8,4599.7,4.4873]
[1758151219880,1.3152,4599.8,4599.7,3.2078]
[1758151220081,1.3152,4599.4,4599.3,0.1739]
[1758151220585,1.3152,4599.4,4599.3,0.4019]
[1758151221374,5.3152,4599.4,4599.3,0.1739]
[1758151221580,1.3152,4599.2,4599.0,0.228]
[1758151222478,4.523,4599.2,4599.0,0.228]
[1758151222879,4.523,4599.2,4598.8,0.0217]
[1758151223179,1.5375,4599.0,4598.9,0.228]
[1758151223880,1.3152,4598.9,4598.8,0.2497]
[1758151224075,1.3152,4598.9,4598.8,0.6163]
[1758151224887,1.3152,4598.9,4598.8,0.2497]
[1758151225886,0.3705,4598.9,4598.8,1.1502]
[1758151226087,1.3152,4598.9,4598.8,0.6163]
[1758151226290,1.3152,4598.9,4598.8,0.3883]
[1758151226683,1.3152,4598.9,4598.8,0.6163]
[1758151227082,1.3152,4598.9,4598.8,0.0217]
[1758151229087,1.3152,4598.9,4598.8,0.2497]
[1758151229394,1.3152,4598.9,4598.8,0.0217]
[1758151229592,1.3152,4598.9,4598.8,0.2497]
[1758151229790,1.3152,4598.9,4598.8,0.6163]
[1758151230087,1.3152,4598.9,4598.8,0.0217]
[1758151230281,1.3152,4598.9,4598.8,0.2497]
[1758151232600,1.3152,4598.9,4598.8,0.6163]
[1758151233192,1.3152,4598.9,4598.8,0.2497]
[1758151233392,1.3152,4598.9,4598.8,0.6163]
[1758151233597,1.3152,4598.9,4598.8,1.5155]
[1758151233797,1.3152,4598.9,4598.8,1.2875]
[1758151234099,1.3152,4598.9,4598.8,1.5155]
[1758151234299,1.3152,4598.9,4598.8,0.6163]
[1758151234499,1.3152,4598.9,4598.8,0.2497]
[1758151235401,1.3152,4598.9,4598.3,3.7417]
[1758151235598,0.3545,4598.6,4598.5,0.8984]
[1758151235804,0.8773,4598.6,4598.5,1.289]
[1758151236699,1.2297,4598.6,4598.5,1.289]
[1758151238307,1.2297,4598.6,4598.5,1.517]
[1758151238703,0.2226,4598.5,4598.3,3.2295]
[1758151238904,1.2297,4598.4,4598.3,3.5861]
[1758151239107,1.2297,4598.4,4598.3,4.7465]
[1758151239710,1.2297,4598.4,4598.3,0.0217]
[1758151240011,1.2297,4598.4,4598.3,0.2497]
[1758151241607,1.2297,4598.4,4598.3,0.6063]
[1758151241914,1.2297,4598.4,4598.3,1.5387]
[1758151242306,1.2297,4598.4,4598.3,0.0217]
[1758151244407,5.2297,4598.4,4598.3,0.0217]
[1758151244613,1.4523,4598.0,4597.9,0.1739]
[1758151244818,4.6601,4598.0,4597.9,0.1739]
[1758151245108,4.6601,4598.0,4597.3,36.0008]
[1758151245109,1.2297,4597.4,4597.3,36.0008]
[1758151247312,1.2297,4597.4,4597.3,0.8984]
[1758151247514,1.2297,4597.4,4597.3,1.517]
[1758151249217,0.3545,4597.4,4597.3,1.517]
[1758151250110,1.2297,4597.4,4597.3,1.517]
[1758151250510,0.3545,4597.4,4597.3,1.517]
[1758151252018,0.3545,4597.4,4597.3,1.516]
[1758151252218,0.8773,4597.4,4597.3,1.516]
[1758151256822,0.8773,4597.4,4597.3,1.289]
[1758151257023,0.8773,4597.4,4597.3,1.516]
[1758151257519,0.5228,4597.3,4597.2,3.2078]
[1758151257821,1.2942,4596.7,4596.6,4.6319]
[1758151258021,1.2942,4596.7,4596.6,4.8589]
[1758151260726,0.3721,4596.7,4596.6,4.8589]
[1758151260926,1.2942,4596.7,4596.6,4.6849]
[1758151261125,0.3721,4596.7,4596.6,4.6849]
[1758151261625,0.3721,4596.8,4596.7,1.2267]
[1758151261819,0.9443,4597.5,4597.4,0.7083]
[1758151262026,0.3721,4597.5,4597.4,1.2267]
[1758151262226,1.2942,4597.5,4597.4,1.2267]
[1758151265527,0.9443,4597.5,4597.4,1.2267]
[1758151266735,1.2942,4597.5,4597.4,1.2267]
[1758151267128,0.3721,4597.5,4597.4,1.2267]
[1758151267328,0.9188,4597.8,4597.7,1.2254]
[1758151267529,1.2875,4597.8,4597.7,1.2254]
[1758151267937,0.3578,4597.8,4597.7,1.2254]
[1758151268732,3.2078,4598.0,4597.8,0.5359]
[1758151268934,3.2078,4598.0,4597.9,1.2254]
[1758151269332,3.5656,4598.5,4598.4,1.2254]
[1758151269628,4.63707146,4598.5,4598.4,1.2254]
[1758151269833,5.21897146,4598.5,4598.4,1.2254]
[1758151270033,5.21897146,4598.5,4598.4,0.3436]
[1758151270726,1.2875,4597.8,4597.7,0.3436]
[1758151270926,1.2875,4597.8,4597.7,0.0217]
[1758151271432,1.7982437,4597.8,4597.7,0.0217]
[1758151272436,0.2132,4597.0,4596.8,0.174]
[1758151272637,0.2132,4595.5,4595.3,2.256e-05]
[1758151272834,0.51118157,4595.4,4595.3,2.256e-05]
[1758151273136,3.2078,4595.8,4595.3,1.22542256]
[1758151273332,0.51055413,4595.7,4595.6,1.2254]
[1758151273532,1.2875,4595.7,4595.6,0.3436]
[1758151273728,1.2875,4595.7,4595.3,2.256e-05]
[1758151273936,0.561,4595.4,4595.3,2.256e-05]
[1758151274129,3.421,4595.5,4595.3,2.256e-05]
[1758151274337,0.561,4595.4,4595.3,2.256e-05]
[1758151274536,0.73721289,4595.4,4595.3,2.256e-05]
[1758151275041,4.94335297,4595.4,4595.3,2.256e-05]
[1758151275238,4.73721289,4595.4,4595.3,2.256e-05]
[1758151275434,4.51021289,4595.4,4595.3,2.256e-05]
[1758151275632,0.73721289,4595.4,4595.3,2.256e-05]
[1758151275836,1.46371289,4595.4,4595.3,0.34362256]
[1758151276142,3.2078,4595.5,4595.4,0.5359]
[1758151276339,3.2078,4595.5,4595.4,1.2254]
[1758151276534,0.561,4596.0,4595.9,1.2254]
[1758151276535,1.2875,4596.0,4595.9,1.2254]
[1758151276734,0.7265,4596.0,4595.9,0.3436]
[1758151276936,1.2875,4596.0,4595.9,0.3436]
[1758151277239,1.2875,4596.0,4595.7,0.5359]
[1758151277240,1.5007,4596.0,4595.7,0.5359]
[1758151277441,0.7265,4595.8,4595.7,0.8795]
[1758151277637,1.2875,4595.8,4595.7,0.8795]
[1758151278141,0.561,4595.7,4595.3,2.256e-05]
[1758151278340,0.561,4595.4,4595.3,2.256e-05]
[1758151279834,5.06971309,4595.4,4595.3,2.256e-05]
[1758151280237,5.28732309,4595.4,4595.3,2.256e-05]
[1758151280441,1.29671309,4595.4,4595.3,2.256e-05]
[1758151281038,5.29671309,4595.4,4595.3,2.256e-05]
[1758151281745,0.50871309,4595.4,4595.3,2.256e-05]
[1758151281938,0.227,4595.4,4595.3,2.256e-05]
[1758151283044,4.227,4595.4,4595.3,2.256e-05]
[1758151284036,0.788,4595.4,4595.3,2.256e-05]
[1758151284637,0.227,4595.4,4595.3,2.256e-05]
[1758151285647,4.227,4595.4,4595.3,2.256e-05]
[1758151285848,4.73470583,4595.4,4595.3,2.256e-05]
[1758151288242,0.561,4594.6,4593.2,0.02177155]
[1758151288449,0.3578,4593.4,4593.3,1.2254]
[1758151288751,1.2875,4593.4,4593.3,1.2254]
[1758151289447,3.7688,4593.9,4593.4,0.5359]
[1758151289653,1.2875,4593.6,4593.5,0.8795]
[1758151289849,1.2875,4593.6,4593.5,1.2254]
[1758151290049,0.7265,4593.6,4593.5,1.4373]
[1758151290351,1.2875,4593.3,4593.2,1.24717155]
[1758151290646,0.3578,4593.3,4593.2,1.24717155]
[1758151290852,0.227,4593.4,4593.3,1.2254]
[1758151291043,0.561,4593.7,4593.4,0.5359]
[1758151291249,0.5848,4593.6,4593.5,1.4373]
[1758151292047,0.9535,4593.6,4593.5,1.4373]
[1758151292248,1.5145,4593.6,4593.5,1.4373]
[1758151292450,0.9535,4593.6,4593.5,1.4373]
[1758151292946,0.3578,4593.6,4593.5,1.4373]
[1758151293154,0.227,4593.7,4593.6,1.2254]
[1758151293346,3.2078,4593.9,4593.7,0.5359]
[1758151293551,4.1266,4594.4,4594.3,1.2254]
[1758151293749,4.7223,4594.4,4594.3,1.2254]
[1758151293956,4.4953,4594.4,4594.3,1.2254]
[1758151294255,0.7265,4594.3,4593.5,0.2119]
[1758151294455,1.2875,4593.7,4593.6,0.8795]
[1758151295053,1.2875,4593.7,4593.6,1.2254]
[1758151295756,1.2875,4593.7,4593.2,0.02177155]
[1758151295757,1.5145,4593.7,4593.2,0.02177155]
[1758151296051,1.2449,4593.6,4593.5,1.2653]